Workbook

Sheet №1_ДОХОДЫ
C1: Приложение 1 к решению Собрания представителей Среднеканского городского округа "О внесении изменений в решение Собрания представителей Среднеканского городского округа «О бюджете муниципального образования «Среднеканский городской округ» на 2017 год» от 30.06.2017 г. № 25
C2: Приложение № 1 к решению Собрания представителей Среднеканского городского округа "О внесении изменений в решение Собрания представителей Среднеканского городского округа «О бюджете муниципального образования «Среднеканский городской округ» на 2018 год» от 27.12.2018 г. № 48
C3: Приложение № 1
C4: к решению Собрания представителей
C5: Среднеканского городского округа
C6: от 15.12.2017 г. № 49
B8: ПОСТУПЛЕНИЯ ДОХОДОВ В БЮДЖЕТ
B9: МУНИЦИПАЛЬНОГО ОБРАЗОВАНИЯ "СРЕДНЕКАНСКИЙ ГОРОДСКОЙ ОКРУГ" НА 2018 ГОД
D10: (тыс. руб.)
B11: Код бюджетной классификации | C11: Наименование | D11: Сумма | H11: налоговые | I11: неналоговые
B12: 1 | C12: 2 | D12: 3 | F12: разница | H12: =D16+D21+D25+D36+D42 -> 80,347.49 | I12: =D46+D54+D70+D60+D65 -> 7,052.90
B13: ВСЕГО: | D13: 429,293.85 | E13: =E14+E87 -> 400,010.10 | F13: =D13-E13 -> 29,283.75
B14: 1 00 00000 00 0000 000 | C14: НАЛОГОВЫЕ И НЕНАЛОГОВЫЕ ДОХОДЫ | D14: 87,400.39 | E14: =E15+E21+E25+E36+E42+E46+E54+E60+E65+E70 -> 83,310.00 | F14: =D14-E14 -> 4,090.39
B15: 1 01 00000 00 0000 000 | C15: НАЛОГИ НА ПРИБЫЛЬ, ДОХОДЫ | D15: 68,585.48 | E15: =E16 -> 65,860.00 | F15: 2,725.48
B16: 1 01 02000 01 0000 110 | C16: Налог на доходы физических лиц | D16: 68,585.48 | E16: =SUM(E17:E20) -> 65,860.00 | F16: 2,725.48
B17: 1 01 02010 01 0000 110 | C17: Налог на доходы физических лиц с доходов, источником которых является налоговый агент, за исключением доходов, в отношении которых исчисление и уплата налога осуществляются в соответствии со статьями 227, 227.1 и 228 Налогового кодекса Российской Федерации | D17: 67,882.5 | E17: =60224+5000 -> 65,224.0 | F17: 2,658.48
B18: 1 01 02020 01 0000 110 | C18: Налог на доходы физических лиц с доходов, полученных от осуществления деятельности физическими лицами, зарегистрированными в качестве индивидуальных предпринимателей, нотариусов, занимающихся частной практикой, адвокатов, учредивших адвокатские кабинеты, и других лиц, занимающихся частной практикой в соответствии со статьей 227 Налогового кодекса Российской Федерации | D18: 185.0 | E18: 125.0 | F18: 60.00
B19: 1 01 02030 01 0000 110 | C19: Налог на доходы физических лиц с доходов, полученных физическими лицами в соответствии со статьей 228 Налогового кодекса Российской Федерации | D19: 11.2 | E19: 21.0 | F19: -9.80
B20: 1 01 02040 01 0000 110 | C20: Налог на доходы физических лиц в виде фиксированных авансовых платежей с доходов, полученных физическими лицами, являющимися иностранными гражданами, осуществляющими трудовую деятельность по найму на основании патента в соответствии со статьей 2271 Налогового кодекса Российской Федерации | D20: 506.8 | E20: 490.0 | F20: 16.80
B21: 1 03 00000 00 0000 000 | C21: НАЛОГИ НА ТОВАРЫ (РАБОТЫ, УСЛУГИ), РЕАЛИЗУЕМЫЕ НА ТЕРРИТОРИИ РОССИЙСКОЙ ФЕДЕРАЦИИ | D21: 5,719.09 | E21: =SUM(E22:E24) -> 4,886.00 | F21: 833.09
B22: 1 03 02230 01 0000 110 | C22: Доходы от уплаты акцизов на дизельное топливо, подлежащие распределению между бюджетами субъектов Российской Федерации и местными бюджетами с учетом установленных дифференцированных нормативов отчислений в местные бюджеты | D22: 1,890.15 | E22: 1,617.00 | F22: 273.15
B23: 1 03 02240 01 0000 110 | C23: Доходы от уплаты акцизов на моторные масла для дизельных и (или) карбюраторных (инжекторных) двигателей, подлежащие распределению между бюджетами субъектов Российской Федерации и местными бюджетами с учетом установленных дифференцированных нормативов отчислений в местные бюджеты | D23: 22.62 | E23: 14.00 | F23: 8.62
B24: 1 03 02250 01 0000 110 | C24: Доходы от уплаты акцизов на автомобильный бензин, подлежащие распределению между бюджетами субъектов Российской Федерации и местными бюджетами с учетом установленных дифференцированных нормативов отчислений в местные бюджеты | D24: 3,806.32 | E24: 3,255.00 | F24: 551.32
B25: 1 05 00000 00 0000 000 | C25: НАЛОГИ НА СОВОКУПНЫЙ ДОХОД | D25: 4,774.70 | E25: =E26+E31+E34 -> 4,988.00 | F25: -213.30
B26: 1 05 01000 00 0000 110 | C26: Налог, взимаемый в связи с применением упрощенной системы налогообложения | D26: 1,161.70 | E26: =SUM(E27:E30) -> 1,375.00 | F26: -213.30
B27: 1 05 01011 01 0000 110 | C27: Налог, взимаемый с налогоплательщиков, выбравших в качестве объекта налогообложения доходы | D27: 624.90 | E27: 491.00 | F27: 133.90
B28: 1 05 01012 01 0000 110 | C28: Налог, взимаемый с налогоплательщиков, выбравших в качестве объекта налогообложения доходы (за налоговые периоды, истекшие до 1 января 2011 года) | D28: 0.00 | E28: 1.00 | F28: -1.00
B29: 1 05 01021 01 0000 110 | C29: Налог, взимаемый с налогоплательщиков, выбравших в качестве объекта налогообложения доходы, уменьшенные на величину расходов | D29: 509.80 | E29: =868-12 -> 856.00 | F29: -346.20
B30: 1 05 01050 01 0000 110 | C30: Минимальный налог, зачисляемый в бюджеты субъектов Российской Федерации | D30: 27.00 | E30: 27.00 | F30: 0.00
B31: 1 05 02000 02 0000 110 | C31: Единый налог на вмененный доход для отдельных видов деятельности | D31: 3,484.00 | E31: =SUM(E32:E33) -> 3,484.00 | F31: 0.00
B32: 1 05 02010 02 0000 110 | C32: Единый налог на вмененный доход для отдельных видов деятельности | D32: 3,484.00 | E32: 3,479.00 | F32: 5.00
B33: 1 05 02020 02 0000 110 | C33: Единый налог на вмененный доход для отдельных видов деятельности (за налоговые периоды, истекшие до 1 января 2011 года) | D33: 0.00 | E33: 5.00 | F33: -5.00
B34: 1 05 03000 01 0000 110 | C34: Единый сельскохозяйственный налог | D34: 129.00 | E34: =E35 -> 129.00 | F34: 0.00
B35: 1 05 03010 01 0000 110 | C35: Единый сельскохозяйственный налог | D35: 129.00 | E35: 129.00 | F35: 0.00
B36: 1 06 00000 00 0000 000 | C36: НАЛОГИ НА ИМУЩЕСТВО | D36: 554.10 | E36: =E37+E39 -> 998.00 | F36: -443.90
B37: 1 06 01000 00 0000 110 | C37: Налог на имущество физических лиц | D37: 170.30 | E37: =E38 -> 90.00 | F37: 80.30
B38: 1 06 01020 04 0000 110 | C38: Налог на имущество физических лиц, взимаемый по ставкам, применяемым к объектам налогообложения, расположенным в границах городских округов | D38: 170.30 | E38: 90.00 | F38: 80.30
B39: 1 06 06000 00 0000 110 | C39: Земельный налог | D39: 383.80 | E39: =SUM(E40:E41) -> 908.00 | F39: -524.20
B40: 1 06 06032 04 0000 110 | C40: Земельный налог с организаций, обладающих земельным участком, расположенным в границах городских округов | D40: 295.10 | E40: 554.00 | F40: -258.90
B41: 1 06 06042 04 0000 110 | C41: Земельный налог с физических лиц, обладающих земельным участком, расположенным в границах городских округов | D41: 88.70 | E41: 354.00 | F41: -265.30
B42: 1 08 00000 00 0000 000 | C42: ГОСУДАРСТВЕННАЯ ПОШЛИНА | D42: 714.12 | E42: =E43 -> 483.00 | F42: 231.12
B43: 1 08 03000 01 0000 110 | C43: Государственная пошлина по делам, рассматриваемым в судах общей юрисдикции, мировыми судьями | D43: 714.12 | E43: =SUM(E44:E45) -> 483.00 | F43: 231.12
B44: 1 08 03010 01 0000 110 | C44: Государственная пошлина по делам, рассматриваемым в судах общей юрисдикции, мировыми судьями (за исключением Верховного Суда Российской Федерации) | D44: 714.12 | E44: 473.00 | F44: 241.12
B45: 1 08 07150 01 0000 110 | C45: Государственная пошлина за выдачу разрешения на установку рекламной конструкции | D45: 0.00 | E45: 10.00 | F45: -10.00
B46: 1 11 00000 00 0000 000 | C46: ДОХОДЫ ОТ ИСПОЛЬЗОВАНИЯ ИМУЩЕСТВА, НАХОДЯЩЕГОСЯ В ГОСУДАРСТВЕННОЙ И МУНИЦИПАЛЬНОЙ СОБСТВЕННОСТИ | D46: 1577.90 | E46: =E47+E53 -> 1,340.00 | F46: 237.90
B47: 1 11 05000 00 0000 120 | C47: Доходы, получаемые в виде арендной либо иной платы за передачу в возмездное пользование государственного и муниципального имущества (за исключением имущества бюджетных и автономных учреждений, а также имущества государственных и муниципальных унитарных предприятий, в том числе казенных) | D47: 1,577.90 | E47: =SUM(E48:E51) -> 1,340.00 | F47: 237.90
B48: 1 11 05012 04 0000 120 | C48: Доходы, получаемые в виде арендной платы за земельные участки, государственная собственность на которые не разграничена и которые расположены в границах городских округов, а также средства от продажи права на заключение договоров аренды указанных земельных участков | D48: 841.90 | E48: 703.00 | F48: 138.90
B49: 1 11 05024 04 0000 120 | C49: Доходы, получаемые в виде арендной платы, а также средства от продажи права на заключение договоров аренды за земли, находящиеся в собственности городских округов (за исключением земельных участков муниципальных бюджетных и автономных учреждений) | D49: 0.00 | E49: 0.00 | F49: 0.00
B50: 1 11 05034 04 0000 120 | C50: Доходы от сдачи в аренду имущества, находящегося в оперативном управлении органов управления городских округов и созданных ими учреждений (за исключением имущества муниципальных бюджетных и автономных учреждений) | D50: 0.00 | E50: 2.00 | F50: -2.00
B51: 1 11 05074 04 0000 120 | C51: Доходы от сдачи в аренду имущества, составляющего казну городских округов (за исключением земельных участков) | D51: 736.00 | E51: 635.00 | F51: 101.00
B52: 1 11 07000 00 0000 120 | C52: Платежи от государственных и муниципальных унитарных предприятий | D52: 0.00 | E52: =E53 -> 0.00 | F52: 0.00
B53: 1 11 07014 04 0000 120 | C53: Доходы от перечисления части прибыли, остающейся после уплаты налогов и иных обязательных платежей муниципальных унитарных предприятий, созданных городскими округами | D53: 0.00 | E53: 0.00 | F53: 0.00
B54: 1 12 00000 00 0000 000 | C54: ПЛАТЕЖИ ПРИ ПОЛЬЗОВАНИИ ПРИРОДНЫМИ РЕСУРСАМИ | D54: 1515.00 | E54: =E55 -> 1,245.00 | F54: 270.00
B55: 1 12 01000 01 0000 120 | C55: Плата за негативное воздействие на окружающую среду | D55: 1,515.00 | E55: =SUM(E56:E59) -> 1,245.00 | F55: 270.00
B56: 1 12 01010 01 0000 120 | C56: Плата за выбросы загрязняющих веществ в атмосферный воздух стационарными объектами | D56: 100.00 | E56: 105.00 | F56: -5.00
B57: 1 12 01030 01 0000 120 | C57: Плата за сбросы загрязняющих веществ в водные объекты | D57: 424.30 | E57: 380.00 | F57: 44.30
B58: 1 12 01041 01 0000 120 | C58: Плата за размещение отходов производства Плата за размещение отходов производства | D58: 976.60 | E58: 740.00 | F58: 236.60
B59: 1 12 01042 01 0000 120 | C59: Плата за размещение твердых коммунальных отходов | D59: 14.10 | E59: 20.00 | F59: -5.90
B60: 1 13 00000 00 0000 000 | C60: ДОХОДЫ ОТ ОКАЗАНИЯ ПЛАТНЫХ УСЛУГ (РАБОТ) И КОМПЕНСАЦИИ ЗАТРАТ ГОСУДАРСТВА | D60: 2572.00 | E60: =E61+E63 -> 2,572.00 | F60: 0.00
B61: 1 13 01990 00 0000 130 | C61: Прочие доходы от оказания платных услуг (работ) | D61: 2,466.30 | E61: =E62 -> 2,481.30 | F61: -15.00
B62: 1 13 01994 04 0000 130 | C62: Прочие доходы от оказания платных услуг (работ) получателями средств бюджетов городских округов | D62: 2,466.30 | E62: =2481.6-0.3 -> 2,481.30 | F62: -15.00
B63: 1 13 02990 00 0000 130 | C63: Прочие доходы от компенсации затрат государства | D63: 105.70 | E63: =E64 -> 90.70 | F63: 15.00
B64: 1 13 02994 04 0000 130 | C64: Прочие доходы от компенсации затрат бюджетов городских округов | D64: 105.70 | E64: =90.4+0.3 -> 90.70 | F64: 15.00
B65: 1 14 00000 00 0000 000 | C65: ДОХОДЫ ОТ ПРОДАЖИ МАТЕРИАЛЬНЫХ И НЕМАТЕРИАЛЬНЫХ АКТИВОВ | D65: 0.00 | E65: =E68+E66 -> 0.00 | F65: 0.00
B66: 1 14 02000 00 0000 000 | C66: Доходы от реализации имущества, находящегося в государственной и муниципальной собственности (за исключением движимого имущества бюджетных и автономных учреждений, а также имущества государственных и муниципальных унитарных предприятий, в том числе казенных) | D66: 0.00 | E66: =E67 -> 0.00 | F66: 0.00
B67: 1 14 02043 04 0000 410 | C67: Доходы от реализации иного имущества, находящегося в собственности городских округов (за исключением имущества муниципальных бюджетных и автономных учреждений, а также имущества муниципальных унитарных предприятий, в том числе казенных), в части реализации основных средств по указанному имуществу | D67: 0.00 | E67: 0.00 | F67: 0.00
B68: 1 14 06000 00 0000 000 | C68: Доходы от продажи земельных участков, находящихся в государственной и муниципальной собственности | D68: 0.00 | E68: =E69 -> 0.00 | F68: 0.00
B69: 1 14 06012 04 0000 430 | C69: Доходы от продажи земельных участков, государственная собственность на которые не разграничена и которые расположены в границах городских округов | F69: 0.00
B70: 1 16 00000 00 0000 000 | C70: ШТРАФЫ, САНКЦИИ, ВОЗМЕЩЕНИЕ УЩЕРБА | D70: 1388.00 | E70: =E71+E74+E75+E76+E80+E81+E82+E83+E84+E85 -> 938.00 | F70: 450.00
B71: 1 16 03000 00 0000 140 | C71: Денежные взыскания (штрафы) за нарушение законодательства о налогах и сборах | D71: 29.60 | E71: =SUM(E72:E73) -> 23.40 | F71: 6.20
B72: 1 16 03010 01 0000 140 | C72: Денежные взыскания (штрафы) за нарушение законодательства о налогах и сборах, предусмотренные статьями 116, 1191, 1192, пунктами 1 и 2 статьи 120, статьями 125, 126, 1261, 128, 129, 1291, 1294, 132, 133, 134, 135, 1351, 1352 Налогового кодекса Российской Федерации | D72: 29.50 | E72: 23.30 | F72: 6.20
B73: 1 16 03030 01 0000 140 | C73: Денежные взыскания (штрафы) за административные правонарушения в области налогов и сборов, предусмотренные Кодексом Российской Федерации об административных правонарушениях предусмотренные Кодексом Российской Федерации об административных правонарушениях | D73: 0.10 | E73: 0.10 | F73: 0.00
B74: 1 16 08010 01 0000 140 | C74: Денежные взыскания (штрафы) за административные правонарушения в области государственного регулирования производства и оборота этилового спирта, алкогольной, спиртосодержащей продукции | D74: 35.00 | E74: 36.00 | F74: -1.00
B75: 1 16 21040 04 0000 140 | C75: Денежные взыскания (штрафы) и иные суммы, взыскиваемые с лиц, виновных в совершении преступлений, и в возмещение ущерба имуществу, зачисляемые в бюджеты городских округов | D75: 50.00 | E75: 30.00 | F75: 20.00
B76: 1 16 25000 00 0000 140 | C76: Денежные взыскания (штрафы) за нарушение законодательства Российской Федерации о недрах, об особо охраняемых природных территориях, об охране и использовании животного мира, об экологической экспертизе, в области охраны окружающей среды, о рыболовстве и сохранении водных биологических ресурсов, земельного законодательства, лесного законодательства, водного законодательства | D76: 0.00 | E76: 23.70 | F76: -23.70
B77: 1 16 25050 01 0000 140 | C77: Денежные взыскания (штрафы) за нарушение законодательства в области охраны окружающей среды | D77: 0.00 | E77: 9.80 | F77: -9.80
B78: 1 16 25060 01 0000 140 | C78: Денежные взыскания (штрафы) за нарушение земельного законодательства | D78: 0.00 | E78: 4.00 | F78: =D78-E78 -> -4.00
B79: 1 16 25084 04 0000 140 | C79: Денежные взыскания (штрафы) за нарушение водного законодательства, установленное на водных объектах, находящихся в собственности городских округов | D79: 0.00 | E79: 9.90 | F79: -9.90
B80: 1 16 28000 01 0000 140 | C80: Денежные взыскания (штрафы) за нарушение законодательства в области обеспечения санитарно-эпидемиологического благополучия человека и законодательства в сфере защиты прав потребителей | D80: 337.50 | E80: 400.00 | F80: -62.50
B81: 1 16 30030 01 0000 140 | C81: Прочие денежные взыскания (штрафы) за правонарушения в области дорожного движения | D81: 0.00 | E81: 98.00 | F81: -98.00
B82: 1 16 33040 04 0000 140 | C82: Денежные взыскания (штрафы) за нарушение законодательства Российской Федерации о контрактной системе в сфере закупок товаров, работ, услуг для обеспечения государственных и муниципальных нужд для нужд городских округов | D82: 110.70 | E82: 87.00 | F82: 23.70
B83: 1 16 43000 01 0000 140 | C83: Денежные взыскания (штрафы) за нарушение законодательства Российской Федерации об административных правонарушениях, предусмотренные статьей 20.25 Кодекса Российской Федерации об административных правонарушениях | D83: 0.00 | E83: 0.00 | F83: 0.00
B84: 1 16 43000 01 0000 140 | C84: Денежные взыскания (штрафы) за нарушение законодательства Российской Федерации об административных правонарушениях, предусмотренные статьей 20.25 Кодекса Российской Федерации об административных правонарушениях | D84: 15.30 | E84: 8.20 | F84: 7.10
B85: 1 16 90000 00 0000 140 | C85: Прочие поступления от денежных взысканий (штрафов) и иных сумм в возмещение ущерба | D85: 809.90 | E85: =E86 -> 231.70 | F85: 578.20
B86: 1 16 90040 04 0000 140 | C86: Прочие поступления от денежных взысканий (штрафов) и иных сумм в возмещение ущерба, зачисляемые в бюджеты городских округов | D86: 809.90 | E86: 231.70 | F86: 578.20
B87: 2 00 00000 00 0000 000 | C87: БЕЗВОЗМЕЗДНЫЕ ПОСТУПЛЕНИЯ | D87: 341,893.46 | E87: =E88+E156 -> 316,700.10 | F87: 25,193.36
B88: 2 02 00000 00 0000 000 | C88: БЕЗВОЗМЕЗДНЫЕ ПОСТУПЛЕНИЯ ОТ ДРУГИХ БЮДЖЕТОВ БЮДЖЕТНОЙ СИСТЕМЫ РОССИЙСКОЙ ФЕДЕРАЦИИ | D88: 320,884.66 | E88: =E89+E95+E132+E152 -> 295,791.30 | F88: 25,093.36
B89: 2 02 10000 00 0000 151 | C89: Дотации бюджетам бюджетной системы Российской Федерации | D89: 81,098.10 | E89: =E90+E93 -> 78,694.10 | F89: 2,404.00
B90: 2 02 15001 00 0000 151 | C90: Дотации на выравнивание бюджетной обеспеченности | D90: 66,410.0 | E90: =SUM(E91:E92) -> 66,410.0 | F90: 0.00
B91: 2 02 15001 04 0000 151 | C91: Дотации бюджетам городских округов на выравнивание бюджетной обеспеченности | D91: 65,918.0 | E91: 65,918.0 | F91: 0.00
B92: 2 02 15001 04 0000 151 | C92: Дотации на выравнивание бюджетной обеспеченности поселений на реализацию подпрограммы "Создание условий для эффективного выполнения полномочий органами местного самоуправления муниципальных образований Магаданской области" на 2015-2020 годы" государственной программы Магаданской области "Управление государственными финансами Магаданской области на 2015-2020 годы" | D92: 492.00 | E92: 492.00 | F92: 0.00
B93: 2 02 15002 00 0000 151 | C93: Дотации бюджетам на поддержку мер по обеспечению сбалансированности бюджетов | D93: 14,688.10 | E93: =E94 -> 12,284.10 | F93: 2,404.00
B94: 2 02 15002 04 0000 151 | C94: Дотации бюджетам городских округов на поддержку мер по обеспечению сбалансированности бюджетов | D94: 14,688.10 | E94: =11342+942.1 -> 12,284.10 | F94: 2,404.00
B95: 2 02 20000 00 0000 151 | C95: Субсидии бюджетам бюджетной системы Российской Федерации (межбюджетные субсидии) | D95: 124,752.13 | E95: =E96+E98+E100+E102 -> 122,699.50 | F95: 2,052.63
B96: 2 02 25497 00 0000 151 | C96: Субсидии бюджетам на реализацию мероприятий по обеспечению жильем молодых семей | D96: 618.70 | E96: =E97 -> 271.50 | F96: 347.20
B97: 2 02 25497 04 0000 151 | C97: Субсидии бюджетам городских округов на реализацию мероприятий по обеспечению жильем молодых семей | D97: 618.70 | E97: 271.50 | F97: 347.20
B98: 2 02 25519 00 0000 151 | C98: Субсидия бюджетам на поддержку отрасли культуры | D98: 3.30 | E98: =E99 -> 3.00 | F98: 0.30
B99: 2 02 25519 04 0000 151 | C99: Субсидия бюджетам городских округов на поддержку отрасли культуры | D99: 3.30 | E99: 3.00 | F99: 0.30
B100: 2 02 25555 00 0000 151 | C100: Субсидии бюджетам на поддержку государственных программ субъектов Российской Федерации и муниципальных программ формирования современной городской среды | D100: 831.93 | E100: =E101 -> 757.10 | F100: 74.83
B101: 2 02 25555 04 0000 151 | C101: Субсидии бюджетам городских округов на поддержку государственных программ субъектов Российской Федерации и муниципальных программ формирования современной городской среды | D101: 831.93 | E101: 757.10 | F101: 74.83
B102: 2 02 29999 00 0000 151 | C102: Прочие субсидии | D102: 123,298.20 | E102: =E103 -> 121,667.90 | F102: 1,630.30
B103: 2 02 29999 04 0000 151 | C103: Прочие субсидии бюджетам городских округов | D103: 123,298.20 | E103: =SUM(E104:E131) -> 121,667.90 | F103: 1,630.30
B104: 2 02 29999 04 0000 151 | C104: Субсидии на выравнивание обеспеченности городских округов по реализации расходных обязательств по оплате коммунальных услуг муниципальными учреждениями и выплате заработной платы работникам муниципальных учреждений на реализацию подпрограммы "Создание условий для эффективного выполнения полномочий органами местного самоуправления муниципальных образований Магаданской области" на 2015-2020 годы" государственной программы Магаданской области "Управление государственными финансами Магаданской области" на 2015-2020 годы" на 2018 год | D104: 90,035.00 | E104: 90,035.00 | F104: 0.00
B105: 2 02 29999 04 0000 151 | C105: Субсидии бюджетам городских округов для финансового обеспечения решения вопросов местного значения поселений на реализацию подпрограммы "Создание условий для эффективного выполнения полномочий органами местного самоуправления муниципальных образований Магаданской области" на 2015-2020 годы" государственной программы Магаданской области "Управление государственными финансами Магаданской области" на 2015-2020 годы" на 2018 год | D105: 5,048.00 | E105: 5,048.00 | F105: 0.00
B106: 2 02 29999 04 0000 151 | C106: Субсидии бюджетам городских округов, предоставляемых в рамках реализации подпрограммы "Развитие государственной гражданской службы и муниципальной службы в Магаданской области" на 2017-2021 годы" государственной программы Магаданской области "Развитие системы государственного и муниципального управления и профилактика коррупции в Магаданской области" на 2017-2021 годы" на 2018 год | D106: 0.00 | E106: 0.00 | F106: 0.00
B107: 2 02 29999 04 0000 151 | C107: Субсидии бюджетам городских округов, предоставляемых в рамках реализации подпрограммы "Дополнительное профессиональное образование лиц, замещающих муниципальные должности в Магаданской области" на 2017-2021 годы" государственной программы Магаданской области "Развитие системы государственного и муниципального управления и профилактика коррупции в Магаданской области" на 2017-2021 годы" на 2018 год | D107: 0.00 | E107: 0.00 | F107: 0.00
B108: 2 02 29999 04 0000 151 | C108: Субсидии бюджетам городских округов на реализацию подпрограммы "Развитие водохозяйственного комплекса Магаданской области" на 2014-2020 годы" государственной программы Магаданской области "Природные ресурсы и экология Магаданской области" на 2014-2020 годы" на 2017 год | D108: 0.00 | E108: 0.00 | F108: 0.00
B109: 2 02 29999 04 0000 151 | C109: Субсидии бюджетам городских округов на реализацию мероприятий подпрограммы "Развитие библиотечного дела Магаданской области" на 2014-2020 годы" государственной программы Магаданской области "Развитие культуры и туризма в Магаданской области" на 2014-2020 годы" на 2018 год | D109: 76.00 | E109: 76.00 | F109: 0.00
B110: 2 02 29999 04 0000 151 | C110: Субсидии бюджетам городских округов на организацию отдыха и оздоровление детей в лагерях дневного пребывания в рамках подпрограммы "Организация и обеспечение отдыха и оздоровления детей в Магаданской области" на 2014-2020 годы" государственной программы Магаданской области "Развитие образования в Магаданской области" на 2014-2020 годы" на 2018 год | D110: 1,180.00 | E110: 1,180.00 | F110: 0.00
B111: 2 02 29999 04 0000 151 | C111: Субсидии бюджетам городских округов на частичное возмещение расходов по присмотру и уходу за детьми с ограниченными возможностями здоровья, обучающимся в дошкольных образовательных организациях, в рамках реализации подпрограммы "Повышение качества и доступности дошкольного образования в Магаданской области" на 2014-2020 годы" государственной программы Магаданской области "Развитие образования в Магаданской области" на 2014-2020 годы" на 2018 год | D111: 49.00 | E111: 49.00 | F111: 0.00
B112: 2 02 29999 04 0000 151 | C112: Субсидии бюджетам городских округов на совершенствование питания учащихся в общеобразовательных организациях в рамках подпрограммы "Развитие общего образования в Магаданской области" на 2014-2020 годы" государственной программы Магаданской области "Развитие образования в Магаданской области" на 2014-2020 годы" на 2018 год | D112: 620.50 | E112: 620.50 | F112: 0.00
B113: 2 02 29999 04 0000 151 | C113: Субсидии бюджетам городских округов на реализацию государственной программы Магаданской области "Развитие системы обращения с отходами производства и потребления на территории Магаданской области" на 2015-2020 годы" на 2018 год | D113: 5632.90 | E113: =3402+492.3 -> 3894.30 | F113: 1,738.60
B114: 2 02 29999 04 0000 151 | C114: Субсидии бюджетам городских округов на организацию и проведение областных универсальных совместных ярмарок в рамках подпрограммы "Развитие торговли на территории Магаданской области на 2014-2020 годы" государственной программы Магаданской области "Развитие сельского хозяйства Магаданской области" на 2014-2020 годы" на 2018 год | D114: 433.80 | E114: 365.00 | F114: 68.80
B115: 2 02 29999 04 0000 151 | C115: Субсидии бюджетам городских округов на укрепление материально-технической базы муниципальных предприятий, муниципальных сельскохозяйственных предприятий, крестьянско-фермерских хозяйств, территориально соседских общин, родовых общин, малочисленных народов Севера, занятых традиционным природопользованием в рамках государственной программы Магаданской области «Социально-экономическое и культурное развитие коренных малочисленных народов Севера, проживающих на территории Магаданской области» на 2014-2020 годы» на 2018 год | D115: 300.00 | E115: 300.00 | F115: 0.00
B116: 2 02 29999 04 0000 151 | C116: Субсидии бюджетам городских округов на проведение мероприятий по благоустройству в рамках государственной программы Магаданской области "Обеспечение качественными жилищно-коммунальными услугами и комфортными условиями проживания населения Магаданской области на 2014-2020 годы" на 2018 год | D116: 1,082.60 | E116: 1,082.60 | F116: 0.00
B117: 2 02 29999 04 0000 151 | C117: Субсидии бюджетам городских округов на расселение наиболее неблагоприятных для проживания населенных пунктов Магаданской области в рамках государственной программы Магаданской области "Обеспечение качественными жилищно-коммунальными услугами и комфортными условиями проживания населения Магаданской области на 2014-2020 годы" на 2017 год | D117: 0.00 | E117: 0.00 | F117: 0.00
B118: 2 02 29999 04 0000 151 | C118: Субсидии бюджетам городских округов на организацию обучения на условиях целевой контрактной подготовки молодежи из числа коренных малочисленных народов Севера в высших учебных заведениях и средних профессиональных образовательных организациях на территории Магаданской области и за ее пределами в рамках государственной программы Магаданской области "Социально-экономическое и культурное развитие коренных малочисленных народов Севера, проживающих на территории Магаданской области" на 2014-2020 годы" на 2018 год | D118: 110.50 | E118: 181.50 | F118: -71.00
B119: 2 02 29999 04 0000 151 | C119: Субсидии бюджетам городских округов на питания (завтрак или полдник) детей из многодетных семей, обучающихся в общеобразовательных организациях, в рамках подпрограммы "Развитие общего образования в Магаданской области" на 2014-2020 годы" государственной программы Магаданской области "Развитие образования в Магаданской области" на 2014-2020 годы" на 2018 год | D119: 341.80 | E119: 153.70 | F119: 188.10
B120: 2 02 29999 04 0000 151 | C120: Субсидии бюджетам городских округов на осуществление мероприятий по подготовке к осенне-зимнему отопительному периоду в рамках реализации государственной программы Магаданской области «Содействие муниципальным образованиям Магаданской области в реализации муниципальных программ комплексного развития коммунальной инфраструктуры» на 2014-2020 годы» на 2018 год | D120: 14,219.10 | E120: =11100+3119.1 -> 14,219.10 | F120: 0.00
B121: 2 02 29999 04 0000 151 | C121: Субсидии бюджетам городских округов на поддержку государственных программ субъектов Российской Федерации и муниципальных программ формирования современной городской среды в рамках реализации государственной программы Магаданской области «Обеспечение качественными жилищно-коммунальными услугами и комфортными условиями проживания населения Магаданской области» на 2014-2020 годы» на 2018 год | D121: 0.00 | E121: 74.80 | F121: -74.80
B122: 2 02 29999 04 0000 151 | C122: Субсидии бюджетам городских округов, предоставляемых в рамках реализации подпрограммы «Развитие библиотечного дела Магаданской области» на 2014-2020 годы» государственной программы Магаданской области «Развитие культуры и туризма Магаданской области» на 2014-2020 годы» на 2018 год | D122: 0.00 | E122: 0.30 | F122: -0.30
B123: 2 02 29999 04 0000 151 | C123: Субсидии бюджетам городских округов на осуществление мероприятий по реконструкции и капитальному ремонту общеобразовательных организаций в рамках подпрограммы «Развитие общего образования в Магаданской области» на 2014-2020 годы» государственной программы Магаданской области «Развитие образования в Магаданской области» на 2014-2020 годы» на 2017 год | D123: 0.00 | E123: 0.00 | F123: 0.00
B124: 2 02 29999 04 0000 151 | C124: Субсидии на мероприятия подпрограммы "Обеспечение жильем молодых семей" федеральной целевой программы "Жилище" на 2015 - 2020 годы | D124: 0.00 | E124: 0.00 | F124: 0.00
B125: 2 02 29999 04 0000 151 | C125: Субсидии бюджетам городских округов на частичное возмещение расходов по присмотру и уходу за детьми, обучающимися в образовательных организациях, реализующих образовательные программы дошкольного образования, родители которых относятся к коренным малочисленным народам Севера в рамках государственной программы Магаданской области "Социально-экономическое и культурное развитие коренных малочисленных народов Севера, проживающих на территории Магаданской области" на 2014-2020 годы" на 2018 год | D125: 787.20 | E125: 787.20 | F125: 0.00
B126: 2 02 29999 04 0000 151 | C126: Субсидии бюджетам городских округов на организацию и проведение гастрономического фестиваля "Колымское братство" на 2018 год | D126: 135.20 | E126: 135.20 | F126: 0.00
B127: 2 02 29999 04 0000 151 | C127: Субсидии бюджетам городских округов на проведение комплексных кадастровых работ на территории Магаданской области в рамках государственной программы Магаданской области "Управление государственным имуществом Магаданской области" на 2016 - 2020 годы" на 2018 год | D127: 224.00 | E127: 224.00 | F127: 0.00
B128: 2 02 29999 04 0000 151 | C128: Субсидии на мероприятия подпрограммы "Обеспечение жильем молодых семей" федеральной целевой программы "Жилище" на 2015 - 2020 годы на 2018 год | D128: 0.00 | E128: 347.20 | F128: -347.20
B129: 2 02 29999 04 0000 151 | C129: Субсидии бюджетам городских округов на реализацию подпрограммы "Обеспечение процесса физической подготовки и спорта" на 2014-2020 годы" государственной программы Магаданской области "Развитие физической культуры и спорта в Магаданской области" на 2014-2020 годы" на 2018 год | D129: 400.00 | E129: 400.00 | F129: 0.00
B130: 2 02 29999 04 0000 151 | C130: Субсидии бюджетам городских округов на возмещение расходов по присмотру и уходу за детьми-инвалидами, детьми-сиротами и детьми, оставшимися без попечения родителей, а также за детьми с туберкулезной интоксикацией, обучающимися в муниципальных образовательных организациях, реализующих образовательную программу дошкольного образования, расположенных на территории Магаданской области, в рамках подпрограммы «Повышение качества и доступности дошкольного образования в Магаданской области» на 2014-2020 годы» государственной программы Магаданской области «Развитие образования в Магаданской области» на 2014-2020 годы» на 2018 год | D130: 94.50 | E130: 94.50 | F130: 0.00
B131: 2 02 29999 04 0000 151 | C131: Субсидии бюджетам городских округов на осуществление мероприятий по реконструкции и капитальному ремонту общеобразовательных организаций в рамках подпрограммы "Развитие общего образования в Магаданской области" на 2014-2020 годы" государственной программы Магаданской области "Развитие образования в Магаданской области" на 2014-2020 годы" на 2018 год | D131: 2,400.00 | E131: 2,400.00 | F131: 0.00
B132: 2 02 29999 04 0000 151 | C132: Субсидии бюджетам городских округов на поддержку преподавания этнических языков (корякский, эвенский, юкагирский и якутский) | D132: 40.00 | E132: =E134+E146+E150+E148 -> 87,412.50 | F132: -87,372.50
B133: 2 02 29999 04 0000 151 | C133: Субсидии бюджетам городских округов на комплексные меры по гармонизации межэтнических и межкультурных отношений, укреплению толерантности на территории Среднеканского городского округа на 2016-2018 годы | D133: 88.10
B134: 2 02 30000 00 0000 151 | C134: Субвенции бюджетам бюджетной системы Российской Федерации | D134: 108,049.23 | E134: =E135 -> 86,337.90 | F134: 21,711.33
B135: 2 02 30024 00 0000 151 | C135: Субвенции местным бюджетам на выполнение передаваемых полномочий субъектов Российской Федерации | D135: 106,850.50 | E135: =SUM(E136:E145) -> 86,337.90 | F135: 20,512.60
B136: 2 02 30024 04 0000 151 | C136: Субвенции бюджетам городских округов на выполнение передаваемых полномочий субъектов Российской Федерации | D136: 106,850.50 | E136: 446.50 | F136: 106,404.00
B137: 2 02 30024 04 0000 151 | C137: Субвенции бюджетам городских округов на осуществление государственных полномочий по выплате вознаграждения за выполнение функций классного руководителя педагогическим работникам муниципальных образовательных организаций в рамках подпрограммы "Управление развитием отрасли образования в Магаданской области" на 2014-2020 годы" государственной программы Магаданской области "Развитие образования в Магаданской области" на 2014-2020 годы" на 2018 год | D137: 446.50 | E137: 45,347.50 | F137: -44,901.00
B138: 2 02 30024 04 0000 151 | C138: Субвенции бюджетам городских округов на финансовое обеспечение муниципальных общеобразовательных организаций в части реализации ими государственного стандарта общего образования в рамках подпрограммы "Управление развитием отрасли образования в Магаданской области" на 2014-2020 годы" государственной программы Магаданской области "Развитие образования в Магаданской области" на 2014-2020 годы" на 2018 год | D138: 52,399.40 | E138: 2,787.60 | F138: 49,611.80
B139: 2 02 30024 04 0000 151 | C139: Субвенции бюджетам городских округов на осуществление государственных полномочий по предоставлению дополнительных мер социальной поддержки педагогическим работникам муниципальных образовательных организаций в рамках подпрограммы "Управление развитием отрасли образования в Магаданской области" на 2014-2020 годы" государственной программы Магаданской области "Развитие образования в Магаданской области" на 2014-2020 годы" на 2018 год | D139: 2,787.60 | E139: 1,404.10 | F139: 1,383.50
B140: 2 02 30024 04 0000 151 | C140: Субвенции бюджетам городских округов на осуществление государственных полномочий по предоставлению дополнительных мер социальной поддержки работникам муниципальных образовательных организаций в рамках подпрограммы "Управление развитием отрасли образования в Магаданской области" на 2014-2020 годы" государственной программы Магаданской области "Развитие образования в Магаданской области" на 2014-2020 годы" на 2018 год | D140: 1,404.10 | E140: 1,143.10 | F140: 261.00
B141: 2 02 30024 04 0000 151 | C141: Субвенции бюджетам городских округов на осуществление государственных полномочий по созданию и организации деятельности комиссий по делам несовершеннолетних и защите их прав в рамках подпрограммы "Управление развитием отрасли образования в Магаданской области" на 2014-2020 годы" государственной программы Магаданской области "Развитие образования в Магаданской области" на 2014-2020 годы" на 2018 год | D141: 538.20 | E141: 776.10 | F141: -237.90
B142: 2 02 30024 04 0000 151 | C142: Субвенции бюджетам городских округов на реализацию Закона Магаданской области от 28 декабря 2009 года № 1220-ОЗ "О наделении органов местного самоуправления государственными полномочиями Магаданской области по регистрации и учету граждан, имеющих право на получение социальных выплат для приобретения жилья в связи с переселением из районов Крайнего Севера и приравненных к ним местностей" на 2018 год | D142: 776.10 | E142: 3,096.40 | F142: -2,320.30
B143: 2 02 30024 04 0000 151 | C143: Субвенции бюджетам городских округов на осуществление государственных полномочий по организации и осуществлению деятельности органов опеки и попечительства на 2018 год | D143: 3,096.40 | E143: 29,278.50 | F143: =D143-E143 -> -26,182.10
B144: 2 02 30024 04 0000 151 | C144: Субвенции бюджетам городских округов на финансовое обеспечение муниципальных дошкольных организаций в рамках подпрограммы "Управление развитием отрасли образования в Магаданской области" на 2014-2020 годы" государственной программы Магаданской области "Развитие образования в Магаданской области" на 2014-2020 годы" на 2018 год | D144: 43,481.80 | E144: 1,082.10 | F144: 42,399.70
B145: 2 02 30024 04 0000 151 | C145: Субвенции бюджетам городских округов на осуществление государственных полномочий по созданию и организации деятельности административных комиссий в рамках реализации ведомственной целевой программы «Развитие государственно-правовых институтов Магаданской области» на 2016-2017 годы» на 2018 год | D145: 944.40 | E145: 976.00 | F145: -31.60
B146: 2 02 30024 04 0000 151 | C146: Субвенции бюджетам городских округов на осуществление государственных полномочий по отлову и содержанию безнадзорных животных на 2018 год | D146: 976.00 | E146: =E147 -> 406.70 | F146: 569.30
B147: 2 02 35118 00 0000 151 | C147: Субвенции бюджетам на осуществление первичного воинского учета на территориях, где отсутствуют военные комиссариаты | D147: 418.60 | E147: 406.70 | F147: 11.90
B148: 2 02 35118 04 0000 151 | C148: Субвенции бюджетам городских округов на осуществление первичного воинского учета на территориях, где отсутствуют военные комиссариаты | D148: 418.60 | E148: =E149 -> 112.20 | F148: 306.40
B149: 2 02 35120 00 0000 151 | C149: Субвенции бюджетам на составление (изменение) списков кандидатов в присяжные заседатели федеральных судов общей юрисдикции в Российской Федерации | D149: 88.03 | E149: 112.20 | F149: -24.17
B150: 2 02 35120 04 0000 151 | C150: Субвенции бюджетам городских округов на осуществление полномочий по составлению (изменению) списков кандидатов в присяжные заседатели федеральных судов общей юрисдикции в Российской Федерации | D150: 88.03 | E150: =E151 -> 555.70 | F150: -467.67
B151: 2 02 35930 00 0000 151 | C151: Субвенции бюджетам на государственную регистрацию актов гражданского состояния | D151: 692.10 | E151: 555.70 | F151: 136.40
B152: 2 02 35930 04 0000 151 | C152: Субвенции бюджетам городских округов на государственную регистрацию актов гражданского состояния | D152: 692.10 | E152: =E153 -> 6,985.20 | F152: -6,293.10
B153: 2 02 40000 00 0000 151 | C153: Иные межбюджетные трансферты | D153: 6,985.20 | E153: =E154 -> 6,985.20 | F153: 0.00
B154: 2 02 49999 00 0000 151 | C154: Прочие межбюджетные трансферты, передаваемые бюджетам | D154: 6,985.20 | E154: =SUM(E155:E155) -> 6,985.20 | F154: 0.00
B155: 2 02 49999 04 0000 151 | C155: Прочие межбюджетные трансферты, передаваемые бюджетам городских округов | D155: 6,985.20 | E155: =6203+782.2 -> 6,985.20 | F155: 0.00
B156: 2 02 49999 04 0000 151 | C156: Прочие межбюджетные трансферты бюджетам городских округов на возмещение расходов на предоставление мер социальной поддержки по оплате жилых помещений и коммунальных услуг отдельных категорий граждан, проживающих на территории Магаданской области, на 2018 год | D156: 6,985.20 | E156: =E157 -> 20,908.80 | F156: -13,923.60
B157: 2 07 04000 04 0000 180 | C157: Прочие безвозмездные поступления в бюджеты городских округов | D157: 21,008.80 | E157: =E158 -> 20,908.80 | F157: 100.00
B158: 2 07 04050 04 0000 180 | C158: Прочие безвозмездные поступления в бюджеты городских округов | D158: 21,008.80 | E158: =20000+385.8+393+70+60 -> 20,908.80 | F158: 100.00
